bitfinex-derivatives/quotes_ETHF0:USTF0_20251203
["timestamp","ask_amount","ask_price","bid_price","bid_amount"]
[1764772771810,3.2078,3082.2,3081.8,0.00325654]
[1764772771999,5.1804,3082.2,3081.1,3.72041]
[1764772772206,3.2078,3081.6,3081.1,3.70944772]
[1764772773011,0.34298226,3081.5,3081.1,3.70944772]
[1764772773309,3.2078,3081.6,3081.1,3.71260734]
[1764772773511,40.8,3081.9,3081.1,3.71260734]
[1764772773711,3.2078,3081.6,3081.1,3.71260734]
[1764772774313,3.2078,3082.2,3081.5,3.2078]
[1764772774607,3.2078,3081.8,3081.1,3.71260734]
[1764772775211,3.2078,3081.8,3081.2,3.2078]
[1764772775807,3.2078,3082.2,3081.2,3.2078]
[1764772776009,0.34331344,3082.1,3081.2,3.2078]
[1764772776205,3.2078,3081.7,3081.2,3.2078]
[1764772776411,3.2078,3082.1,3081.2,3.2078]
[1764772776711,3.2078,3083.0,3082.4,0.16218]
[1764772776911,3.2078,3083.6,3082.5,3.2078]
[1764772777413,6.80409,3084.0,3081.5,3.11023661]
[1764772777414,0.34350604,3083.1,3082.1,3.2078]
[1764772777610,3.2078,3082.8,3082.1,3.2078]
[1764772777808,3.36999,3082.3,3081.2,3.2078]
[1764772778010,3.2078,3082.1,3081.2,3.37004]
[1764772778217,3.2078,3082.5,3081.6,3.2078]
[1764772778408,0.34344234,3082.4,3081.6,3.2078]
[1764772778609,3.2078,3082.1,3081.2,3.2078]
[1764772778806,0.34339458,3082.0,3081.2,3.2078]
[1764772779618,0.34339458,3082.0,3081.1,0.50480734]
[1764772779619,3.2078,3081.7,3081.1,0.50480734]
[1764772780118,0.34344884,3081.6,3081.1,0.50480734]
[1764772780309,14.26718,3082.4,3081.1,0.50480734]
[1764772780310,3.2078,3081.3,3081.1,0.50480734]
[1764772780511,3.2078,3081.7,3081.1,0.50480734]
[1764772780711,0.34336212,3081.6,3081.1,0.50480734]
[1764772781622,3.2078,3081.3,3081.1,0.50480734]
[1764772782016,9.2078,3081.3,3080.0,3.2078]
[1764772782226,3.2078,3080.8,3080.0,3.2078]
[1764772782519,0.00486878,3081.0,3080.0,3.2078]
[1764772782520,0.00486878,3081.0,3080.0,5.1316]
[1764772782821,3.2078,3080.7,3080.0,3.2078]
[1764772783222,3.2078,3080.2,3080.0,0.00400396]
[1764772784019,3.2078,3080.2,3079.0,3.2078]
[1764772784222,3.2078,3079.8,3079.0,3.2078]
[1764772784414,0.1623,3080.0,3079.0,3.2078]
[1764772784611,3.2078,3080.3,3079.5,3.2078]
[1764772784814,3.2078,3079.9,3079.1,3.2078]
[1764772785016,3.2078,3079.9,3079.1,3.21061638]
[1764772785412,3.2078,3080.3,3079.1,3.21061638]
[1764772785825,3.2078,3079.6,3079.1,0.00281638]
[1764772786023,0.16233,3079.6,3079.1,0.00281638]
[1764772786227,3.2078,3079.2,3079.1,0.00281638]
[1764772786419,3.2078,3079.3,3079.1,0.00281638]
[1764772786720,0.00486878,3079.5,3078.3,3.2078]
[1764772786928,3.2078,3079.2,3078.3,3.2078]
[1764772787119,0.00486878,3079.5,3078.3,3.2078]
[1764772787322,0.34238338,3079.4,3078.3,3.2078]
[1764772787523,3.2078,3079.3,3078.3,3.2078]
[1764772787723,0.34238338,3079.2,3078.3,3.21037082]
[1764772788229,14.061,3079.1,3078.3,3.21037082]
[1764772788523,3.2078,3079.3,3078.3,3.21037082]
[1764772788723,3.2078,3078.7,3078.3,0.00257082]
[1764772789731,3.2078,3078.7,3077.9,3.2078]
[1764772789732,0.34244242,3078.6,3077.9,3.2078]
[1764772789931,3.2078,3078.3,3077.4,3.2078]
[1764772790231,3.37021,3077.9,3077.0,3.2078]
[1764772790525,1.9274,3078.0,3076.4,3.2078]
[1764772790526,3.2078,3077.2,3076.4,3.2078]
[1764772790828,3.2078,3077.2,3076.4,0.00316653]
[1764772790829,3.2078,3076.6,3076.4,0.00316653]
[1764772791127,40.8,3076.5,3075.8,3.2078]
[1764772791326,3.2078,3076.0,3075.3,3.2078]
[1764772791533,3.21267686,3076.0,3075.3,3.2078]
[1764772791714,5.06797686,3076.0,3075.3,3.2078]
[1764772791918,3.21267686,3076.0,3075.3,3.2078]
[1764772792115,0.00487686,3076.0,3075.3,3.21125832]
[1764772792334,0.00487686,3076.0,3075.7,3.2078]
[1764772792517,0.0035803,3077.2,3075.7,9.2078]
[1764772792717,0.0035803,3077.2,3076.6,3.2078]
[1764772793523,0.00845716,3077.2,3076.6,3.21267686]
[1764772795131,3.2078,3077.0,3076.6,0.00487686]
[1764772795527,3.11869377,3077.2,3076.6,0.00487686]
[1764772795528,0.00845716,3077.2,3076.6,0.00487686]
[1764772796422,0.00845716,3077.2,3076.6,3.21267686]
[1764772796623,0.00845716,3077.2,3077.0,3.2078]
[1764772797130,3.2078,3078.3,3077.0,11.1316]
[1764772797328,3.2078,3078.3,3077.5,3.2078]
[1764772797529,3.2078,3078.3,3077.9,3.2078]
[1764772797928,3.2078,3078.3,3077.4,3.2078]
[1764772798232,0.00487686,3078.2,3077.4,0.00339803]
[1764772798427,0.00487686,3078.2,3077.4,3.21119803]
[1764772798834,0.16235,3079.1,3077.4,3.21119803]
[1764772798835,3.2078,3079.2,3078.1,3.2078]
[1764772799021,3.2078,3078.8,3078.0,1.9238]
[1764772799227,3.2078,3078.4,3077.7,3.2078]
[1764772799626,3.2078,3078.8,3077.7,3.2078]
[1764772799832,0.00487686,3078.6,3077.9,0.00487686]
[1764772800331,0.16239,3078.3,3077.9,0.00487686]
[1764772800534,17.2248,3078.5,3077.9,0.00487686]
[1764772800729,3.2078,3078.5,3077.9,0.00487686]
[1764772800925,0.00487686,3078.6,3077.9,0.00487686]
[1764772801238,3.2078,3079.3,3078.4,3.2078]
[1764772801435,3.2078,3079.8,3078.7,3.2078]
[1764772801632,0.9122,3081.1,3079.2,3.2078]
[1764772801633,3.2078,3080.2,3079.2,3.2078]
[1764772801939,3.2078,3080.6,3079.5,0.16233]
[1764772802133,3.2078,3080.6,3079.8,3.2078]
[1764772802134,0.00487686,3080.4,3079.8,3.2078]
[1764772802438,0.00487686,3080.4,3079.8,3.21064816]
[1764772802636,0.00487686,3080.4,3080.2,3.2078]
[1764772802840,3.2078,3082.0,3080.2,3.2078]
[1764772803135,3.2078,3082.0,3081.3,3.2078]
[1764772803327,3.2078,3083.5,3082.0,1.7897]
[1764772803529,3.2078,3083.1,3082.0,4.9975]
[1764772804031,0.00486871,3082.9,3082.2,0.00486871]
[1764772804229,0.00486871,3082.9,3082.5,3.2078]
[1764772804632,0.00486871,3082.9,3082.2,0.00486871]
[1764772804933,0.00486871,3082.9,3082.5,3.2078]
[1764772805135,0.0033179,3083.1,3082.7,3.2078]
[1764772805333,3.2078,3083.7,3082.8,3.2078]
[1764772805534,3.2078,3083.7,3083.2,3.2078]
[1764772805731,3.2078,3084.1,3083.3,1.7897]
[1764772806034,3.2078,3084.1,3083.6,3.2078]
[1764772806224,0.00401208,3084.1,3084.0,3.2078]
[1764772806430,3.2078,3085.0,3084.0,3.2078]
[1764772806629,8.4391,3086.0,3083.5,0.00486871]
[1764772806630,3.2078,3084.6,3083.5,0.00486871]
[1764772806834,3.2078,3083.8,3083.5,0.00486871]
[1764772807137,3.2078,3083.8,3082.3,3.2078]
[1764772807334,3.2078,3082.9,3082.3,3.2078]
[1764772808236,3.2078,3082.9,3082.3,0.00486871]
[1764772808237,3.2078,3082.4,3082.3,0.00486871]
[1764772808445,3.36998,3082.4,3080.8,3.2078]
[1764772808644,3.2078,3081.5,3080.8,3.2078]
[1764772809037,40.8,3082.6,3080.0,1.9238]
[1764772809038,3.2078,3082.3,3081.3,3.2078]
[1764772809236,3.2078,3081.9,3080.9,4.20457741]
[1764772809531,0.00486871,3081.7,3081.1,0.00486871]
[1764772809737,3.2078,3081.5,3081.1,0.00486871]
[1764772810039,0.00486871,3081.7,3081.1,0.00486871]
[1764772810547,3.2078,3081.5,3081.1,0.00486871]
[1764772811048,0.00486871,3081.7,3081.4,3.2078]
[1764772811234,0.00284903,3081.9,3081.4,3.2078]
[1764772811434,4.903e-05,3081.9,3081.8,3.2078]
[1764772811742,4.903e-05,3081.9,3081.4,3.2078]
[1764772811938,3.2078,3082.3,3081.4,3.2078]
[1764772812337,3.2078,3081.7,3081.1,1.79456871]
[1764772812539,3.2078,3081.3,3081.1,0.00486871]
[1764772813047,0.00403266,3081.3,3081.1,0.00486871]
[1764772813431,3.21183266,3081.3,3081.1,0.00486871]
[1764772813633,0.00403266,3081.3,3081.1,0.00486871]
[1764772815136,0.00403266,3081.3,3080.9,1.35676169]
[1764772815539,3.2078,3081.1,3080.9,1.35676169]
[1764772815740,0.00403266,3081.3,3080.9,1.35676169]
[1764772816045,1.94115871,3082.2,3081.1,4.9975]
[1764772816046,0.00486871,3082.2,3081.1,4.9975]
[1764772816345,0.00486871,3082.2,3082.1,3.2078]
[1764772816835,0.00486871,3082.2,3081.3,3.2078]
[1764772817035,3.2078,3082.0,3081.3,3.2078]
[1764772818742,2.20865334,3083.2,3081.3,3.2078]
[1764772818743,3.2078,3083.5,3082.2,1.7897]
[1764772818949,3.2078,3083.5,3082.7,3.2078]
[1764772819745,3.2078,3083.1,3082.8,0.00486871]
[1764772820341,3.2078,3083.1,3082.0,3.2078]
[1764772820544,3.2078,3082.7,3082.0,3.2078]
[1764772821042,3.2078,3083.3,3082.0,3.2078]
[1764772821343,3.2078,3083.3,3082.4,3.2078]
[1764772821542,0.00486871,3083.4,3082.3,0.00486871]
[1764772821543,0.00486871,3083.4,3082.9,3.2078]
[1764772821738,3.2078,3084.1,3083.3,4.9975]
[1764772821938,3.2078,3084.1,3083.3,3.2078]
[1764772822140,3.2078,3084.1,3083.3,4.9975]
[1764772822350,3.2078,3084.5,3083.3,4.9975]
[1764772822536,3.2078,3083.7,3082.5,3.2078]
[1764772822741,0.00486871,3083.4,3082.5,3.21184234]
[1764772823046,3.2078,3083.1,3082.5,0.00404234]
[1764772823247,0.00486871,3083.4,3082.5,3.37401234]
[1764772823445,0.00486871,3083.4,3083.3,3.2078]
[1764772823640,0.00284014,3083.7,3083.3,4.9975]
[1764772823949,3.2078,3084.6,3083.3,9.2009481]
[1764772824143,3.2078,3084.6,3083.3,4.9975]
[1764772824343,3.2078,3084.6,3083.7,3.2078]
[1764772824555,3.2078,3084.6,3083.8,0.00486871]
[1764772824851,3.2078,3084.1,3083.8,0.00486871]
[1764772825053,0.00258388,3084.6,3083.8,0.00486871]
[1764772825349,0.00258388,3084.6,3084.5,3.2078]
[1764772825649,3.2078,3085.9,3084.5,3.2078]
[1764772825948,3.2078,3085.9,3085.1,3.2078]
[1764772826149,1.64975194,3085.4,3085.1,3.2078]
[1764772826352,3.2078,3085.2,3084.7,0.82612093]
[1764772826549,3.2078,3084.8,3084.7,0.002651]
[1764772826746,3.37372662,3085.2,3084.7,0.002651]
[1764772826952,3.37372662,3085.2,3083.3,1.7897]
[1764772826953,3.2078,3085.1,3083.3,1.7897]
[1764772827153,3.2078,3084.7,3083.3,1.7897]
[1764772827353,3.2078,3084.9,3084.1,3.2078]
[1764772827648,3.2078,3084.5,3083.7,3.2078]
[1764772827849,3.2078,3084.5,3083.8,0.00900887]
[1764772828050,3.2078,3084.3,3083.8,0.00900887]
[1764772828244,3.2078,3083.9,3083.8,0.00900887]
[1764772828444,0.16212,3083.6,3082.8,3.2078]
[1764772828647,0.16213,3083.4,3082.8,3.2078]
[1764772828953,3.36994,3083.1,3082.4,3.2078]
[1764772829148,1.66749014,3083.0,3082.4,3.2078]
[1764772829348,1.66749014,3083.1,3082.4,3.2078]
[1764772829554,0.34322489,3083.0,3082.4,3.2166995]
[1764772829954,3.2078,3082.8,3082.4,0.0088995]
[1764772830144,0.34322489,3082.7,3082.4,0.0088995]
[1764772830346,3.2078,3082.7,3082.4,0.0088995]
[1764772830544,0.34327049,3082.6,3082.4,0.0088995]
[1764772830755,0.00719712,3083.1,3082.5,3.2078]
[1764772830955,0.00719712,3083.1,3082.9,3.2078]
[1764772831556,0.00719712,3083.1,3083.0,3.2078]
[1764772831754,0.00719712,3083.1,3082.4,0.0088995]
[1764772832056,3.2078,3082.9,3082.4,0.0088995]
[1764772832257,0.34433528,3082.8,3082.4,0.0088995]
[1764772832649,0.00719712,3083.1,3082.7,3.2078]
[1764772834661,1.66749014,3084.3,3082.8,0.16216]
[1764772834958,3.2078,3084.4,3083.6,3.2078]
[1764772835754,3.21057892,3084.4,3083.6,3.2078]
[1764772836653,3.37265892,3084.4,3083.2,3.2078]
[1764772836854,3.2078,3084.0,3083.2,3.2078]
[1764772837052,4.8178,3084.0,3083.2,3.2078]
[1764772837252,3.2078,3083.4,3082.8,3.2078]
[1764772837561,3.36992,3083.4,3082.8,3.2078]
[1764772837751,3.27749014,3084.0,3083.2,3.2078]
[1764772837952,3.21057892,3084.4,3083.6,3.2078]
[1764772838652,3.21057892,3084.4,3083.2,3.2078]
[1764772838847,3.2078,3084.0,3083.2,3.2078]
[1764772839363,0.00277892,3084.4,3083.2,3.2078]
[1764772839364,3.21057892,3084.4,3083.2,3.2078]
[1764772840054,3.21057892,3084.4,3083.7,3.2078]
[1764772841756,0.00277892,3084.4,3084.1,3.2078]
[1764772841958,3.2078,3085.0,3084.1,3.2078]
[1764772842158,3.2078,3085.0,3084.2,0.00486871]
[1764772842860,3.2119843,3085.0,3084.2,0.00486871]
[1764772843060,0.0041843,3085.0,3084.2,0.00486871]
[1764772843961,0.0041843,3085.0,3084.5,3.2078]
[1764772844354,1.66749014,3085.9,3084.9,3.2078]
[1764772844355,3.2078,3085.9,3084.9,3.2078]
[1764772844549,3.2078,3085.9,3084.3,0.16207]
[1764772844550,1.82946014,3086.5,3085.8,3.2078]
[1764772844751,3.2078,3086.8,3086.3,3.2078]
[1764772844952,3.2078,3087.4,3086.3,3.2078]
[1764772845255,3.2078,3086.6,3086.0,1.6792]
[1764772845455,3.2078,3086.2,3086.0,0.00270177]
[1764772845656,0.16199,3086.0,3084.9,3.2078]
[1764772845852,0.34165115,3085.9,3085.4,3.2078]
[1764772846052,0.00483282,3086.4,3085.4,3.2078]
[1764772846254,0.00483282,3086.4,3085.0,5.897353]
[1764772846255,0.00483282,3086.4,3085.8,3.2078]
[1764772846561,3.2078,3086.1,3085.3,3.2078]
[1764772846862,0.34168658,3086.0,3085.4,0.00486042]
[1764772847156,3.2078,3085.7,3085.4,0.00486042]
[1764772847358,0.34168658,3085.6,3085.4,0.00486042]
[1764772847949,0.34168658,3085.6,3085.0,0.00227605]
[1764772848359,0.34168658,3085.6,3085.1,1.355]
[1764772848965,3.2078,3085.3,3085.1,1.355]
[1764772849163,3.2078,3085.7,3085.1,1.355]
[1764772849459,0.34156815,3085.6,3085.1,1.355]
[1764772849863,0.34156815,3085.6,3085.4,3.2078]
[1764772850168,0.34156815,3085.5,3085.1,1.355]
[1764772850357,0.34156815,3085.4,3085.1,1.355]
[1764772850557,3.54936815,3085.3,3085.1,1.355]
[1764772850867,0.34156815,3085.2,3085.1,1.355]
[1764772851257,0.34156815,3085.8,3085.1,1.355]
[1764772851563,0.00483282,3086.4,3085.7,3.2078]
[1764772851758,0.3465089,3086.4,3085.7,3.2078]
[1764772851962,0.3465089,3086.4,3085.3,3.2078]
[1764772852259,3.2078,3085.7,3085.1,1.355]
[1764772852464,3.2078,3085.3,3085.1,1.355]
[1764772852854,0.34143864,3085.2,3085.1,1.355]
[1764772854054,3.2078,3085.7,3085.1,1.355]
[1764772854266,3.2078,3085.7,3085.3,3.2078]
[1764772854756,0.00483282,3086.4,3085.3,3.2078]
[1764772854962,0.00483282,3086.4,3086.1,3.2078]
[1764772859654,0.00483282,3086.4,3086.1,4.7551]
[1764772859861,3.2078,3087.2,3086.1,4.7551]
[1764772860065,3.2078,3087.2,3086.5,3.2078]
[1764772860270,3.2078,3088.1,3086.5,11.98370962]
[1764772860564,3.2078,3088.5,3087.6,3.2078]
[1764772860756,3.2078,3088.5,3087.0,1.6753]
[1764772860757,3.2078,3089.0,3087.8,3.2078]
[1764772860956,0.00486042,3088.7,3088.3,3.2078]
[1764772861358,2.42e-05,3088.7,3088.4,6.0]
[1764772861553,2.42e-05,3088.7,3088.4,10.23230559]
[1764772861762,2.42e-05,3088.7,3088.3,3.21115883]
[1764772861964,2.42e-05,3088.7,3088.3,0.00335883]
[1764772862163,2.42e-05,3088.7,3088.5,3.2078]
[1764772862667,2.42e-05,3088.7,3088.6,12.94103774]
[1764772862858,3.2078,3090.9,3089.0,1.6792]
[1764772863060,3.2078,3091.3,3090.4,3.2078]
[1764772863354,3.2078,3090.9,3090.0,3.2078]
[1764772863861,3.21121253,3090.9,3090.0,3.2078]
[1764772864054,0.00341253,3090.9,3090.4,3.2078]
[1764772864258,0.00341253,3090.9,3090.8,3.2078]
[1764772864455,0.00341253,3090.9,3090.8,0.0029304]
[1764772865162,0.00341253,3090.9,3090.8,3.2107304]
[1764772865371,0.00341253,3090.9,3090.8,0.0029304]
[1764772866065,11.662,3092.8,3091.0,1.4254]
[1764772866258,3.2078,3093.5,3092.4,3.2078]
[1764772866460,3.2078,3094.0,3093.0,3.2078]
[1764772866762,0.00810787,3094.9,3093.4,3.2078]
[1764772866965,0.0091043,3096.1,3094.7,3.2078]
[1764772867270,3.2078,3098.9,3096.5,1.4254]
[1764772867567,3.90068655,3100.8,3096.5,1.4254]
[1764772867568,3.2078,3101.3,3098.6,2.61394962]
[1764772867766,1.4015,3101.0,3099.6,3.2078]
[1764772867957,1.40378328,3101.0,3099.6,3.2114762]
[1764772868158,3.2078,3100.0,3098.1,3.2078]
[1764772868359,1.4015,3099.6,3098.3,3.2078]
[1764772868564,3.2078,3098.9,3098.8,4.09983189]
[1764772868760,3.22133454,3098.9,3097.4,3.2078]
[1764772868961,3.2078,3098.6,3098.4,4.24578163]
[1764772869265,0.00283335,3098.6,3098.0,3.2078]
[1764772869455,7.583,3100.8,3095.4,1.5869]
[1764772869456,1.66749014,3103.4,3100.7,3.2078]
[1764772869655,11.14481871,3104.3,3099.6,1.4254]
[1764772869656,0.32608642,3103.3,3103.1,3.2078]
[1764772869955,1.4015,3106.6,3101.0,1.4254]
[1764772869956,2.20865334,3107.0,3103.5,3.2078]
[1764772870155,0.34066923,3106.9,3105.1,3.2078]
[1764772870362,2.61394962,3106.3,3106.0,3.2078]
[1764772870561,1.4015,3105.2,3104.3,3.2078]
[1764772870757,40.8,3104.7,3104.3,2.89191907]
[1764772870968,40.8,3104.7,3103.4,3.2078]
[1764772871159,40.8,3104.7,3104.4,4.12503032]
[1764772871354,44.0078,3104.7,3104.4,0.00483519]
[1764772871559,40.80324392,3104.7,3104.4,0.00902549]
[1764772871759,0.00324392,3104.7,3104.4,0.00902549]
[1764772871963,0.00324392,3104.7,3104.5,4.26237891]
[1764772872159,3.2078,3106.1,3104.6,9.2078]
[1764772872361,4.6093,3108.0,3106.0,3.2078]
[1764772872558,3.2078,3111.9,3107.9,3.2078]
[1764772872762,2.93669195,3111.9,3111.0,1.2538]
[1764772872971,1.432,3113.6,3111.8,3.2078]
[1764772873157,1.432,3113.6,3111.8,0.00395771]
[1764772873158,3.2078,3112.1,3111.8,0.00395771]
[1764772873357,1.4015,3112.7,3111.9,4.24667758]
[1764772873568,1.4015,3112.7,3111.0,3.2078]
[1764772873569,3.2078,3111.2,3109.1,3.2078]
[1764772873768,3.2078,3111.2,3110.5,3.2078]
[1764772873970,3.2078,3111.5,3110.8,3.2078]
[1764772874176,1.4015,3112.7,3110.8,3.2078]
[1764772874466,2.58602984,3115.6,3110.8,3.2078]
[1764772874467,3.2078,3112.9,3111.1,3.2078]
[1764772874766,3.2078,3113.8,3112.0,3.2078]
[1764772874960,0.25,3115.0,3111.4,0.00481788]
[1764772874961,3.2078,3113.7,3112.4,3.2078]
[1764772875167,3.2078,3114.8,3113.4,3.2078]
[1764772875370,3.2078,3114.8,3114.3,3.2078]
[1764772875371,40.8,3114.7,3114.3,3.2078]
[1764772875569,3.2078,3114.5,3113.8,0.00481788]
[1764772875772,3.2078,3113.9,3111.2,3.2078]
[1764772875971,1.4015,3114.0,3110.9,3.2078]
[1764772875972,40.8,3112.6,3110.9,3.2078]
[1764772876171,40.8,3112.6,3111.5,3.2078]
[1764772876467,1.4015,3117.8,3113.5,3.2078]
[1764772876674,0.09370399,3117.6,3116.8,3.2078]
[1764772876865,0.09370399,3117.6,3116.8,0.00229368]
[1764772877063,3.2078,3118.7,3117.5,3.2078]
[1764772877261,15.894,3119.1,3116.8,0.00229368]
[1764772877262,3.2078,3119.1,3118.2,3.2078]
[1764772877465,3.2078,3119.1,3116.8,0.00229368]
[1764772877466,3.2078,3119.9,3117.6,7.49694884]
[1764772877667,1.6515,3120.0,3117.6,7.49694884]
[1764772877668,2.61394962,3118.8,3118.3,4.09804368]
[1764772877871,1.4015,3118.0,3115.9,3.2078]
[1764772878066,40.8,3116.1,3112.0,1.4108]
[1764772878267,29.0175,3116.0,3114.1,3.2078]
[1764772878563,3.2078,3115.8,3112.1,3.63148107]
[1764772878766,0.00473417,3114.4,3113.7,0.00481008]
[1764772878967,3.2078,3118.2,3115.4,3.2078]
[1764772879272,19.2358,3119.2,3117.3,3.2078]
[1764772879466,2.61394962,3118.4,3117.2,3.2078]
[1764772879774,2.61394962,3117.3,3115.7,3.2078]
[1764772879965,2.61394962,3117.3,3111.5,0.76816372]
[1764772879966,2.61394962,3115.9,3114.5,3.2078]
[1764772880271,9.19590421,3117.3,3115.8,3.2078]
[1764772880474,2.61394962,3118.6,3117.2,3.2078]
[1764772880665,2.61394962,3118.8,3118.1,3.2078]
[1764772880867,40.8,3118.2,3117.9,3.2078]
[1764772881074,40.8,3118.2,3117.6,0.00481008]
[1764772881366,2.61394962,3117.7,3116.8,3.2078]
[1764772881562,27.699,3117.6,3116.9,3.2078]
[1764772881761,2.61394962,3117.0,3115.9,3.2078]
[1764772881966,2.61394962,3116.2,3115.3,3.2078]
[1764772882167,2.61394962,3115.5,3114.5,3.2078]
[1764772882368,4.10534824,3116.9,3115.4,3.39672416]
[1764772882568,4.10534824,3117.4,3116.6,3.2078]
[1764772882768,0.00366568,3117.4,3116.6,0.00249576]
[1764772882990,0.00366568,3117.4,3112.2,5.54837426]
[1764772882991,2.61394962,3116.8,3115.0,3.2078]
[1764772883274,2.61394962,3115.8,3114.4,3.2078]
[1764772883469,1.4015,3116.0,3114.8,3.2078]
[1764772883873,3.2078,3116.6,3115.2,3.2078]
[1764772884071,3.2078,3117.5,3116.1,3.2078]
[1764772884368,3.2078,3117.5,3114.9,4.15233458]
[1764772884369,3.2078,3118.3,3116.5,3.2078]
[1764772884569,16.205,3119.3,3116.2,4.15233458]
[1764772884570,19.4128,3119.3,3117.3,3.2078]
[1764772884770,2.61394962,3118.0,3117.3,3.2078]
[1764772884966,3.2078,3118.5,3114.9,0.16048]
[1764772884967,0.00481008,3117.3,3117.0,3.2078]
[1764772885166,0.00481008,3117.3,3116.6,3.2078]
[1764772885372,0.25,3120.0,3118.0,3.2078]
[1764772885572,40.8,3119.9,3118.8,3.2078]
[1764772885868,0.25390079,3120.0,3119.7,3.2078]
[1764772886072,0.002,3124.9,3119.7,3.2078]
[1764772886073,0.16008,3122.7,3119.7,3.2078]
[1764772886276,0.16008,3122.7,3118.6,2.61394962]
[1764772886277,2.61394962,3122.4,3121.6,3.2078]
[1764772886474,0.25444085,3123.9,3122.2,2.61394962]
[1764772886778,0.25444085,3123.9,3120.4,11.578]
[1764772886779,44.01591064,3125.8,3123.8,3.2078]
[1764772886975,0.00553407,3124.9,3123.8,0.00364582]
[1764772887170,0.00553407,3124.9,3124.4,3.2078]
[1764772887471,0.25833288,3126.5,3124.8,3.2078]
[1764772887674,3.2078,3127.0,3124.5,3.6626848]
[1764772887675,44.0078,3127.0,3124.5,4.12490657]
[1764772887876,4.6093,3126.9,3124.5,4.12490657]
[1764772888072,3.2078,3126.5,3124.7,3.2078]
[1764772888268,3.2078,3126.5,3124.5,3.2078]
[1764772888269,0.0047798,3126.1,3124.5,3.2078]
[1764772888575,3.2078,3125.8,3125.0,3.2078]
[1764772888873,0.0047798,3126.1,3125.1,4.15603318]
[1764772889069,0.0047798,3126.1,3124.0,3.21260099]
[1764772889269,12.062,3126.2,3124.0,3.21260099]
[1764772889466,0.00299605,3126.5,3125.2,3.2078]
[1764772889768,3.2078,3128.4,3126.3,3.2078]
[1764772889975,1.4015,3126.9,3125.5,3.2078]
[1764772890270,3.2078,3126.6,3125.0,3.2078]
[1764772890468,6.29455204,3127.6,3126.5,3.2078]
[1764772890667,0.0026629,3127.6,3126.9,3.2078]
[1764772890867,3.2078,3127.1,3126.5,0.00294716]
[1764772891069,6.29455204,3126.6,3124.2,3.2078]
[1764772891273,40.8,3125.4,3123.7,3.2078]
[1764772891468,40.8,3125.4,3121.7,3.2078]
[1764772891469,3.08675204,3123.9,3121.7,3.2078]
[1764772891679,3.2078,3124.0,3122.0,3.2078]
[1764772891986,0.00328964,3124.0,3122.7,3.2078]
[1764772892284,29.46878964,3124.0,3123.0,0.00480099]
[1764772892577,0.00480098,3123.7,3123.1,3.2078]
[1764772892876,0.00328964,3124.0,3123.0,3.21260099]
[1764772893081,40.8,3125.4,3123.2,4.07446432]
[1764772893082,3.08675204,3123.8,3123.2,4.07446432]
[1764772893376,3.2078,3123.7,3122.3,3.2078]
[1764772893574,3.08675204,3123.4,3122.3,3.2078]
[1764772893772,40.8,3125.4,3123.3,3.2078]
[1764772893773,3.08675204,3124.4,3123.3,3.2078]
[1764772894073,0.0037432,3124.4,3124.3,3.2078]
[1764772894278,6.45448204,3125.7,3124.3,3.21145017]
[1764772894576,3.21260099,3124.7,3122.6,3.2078]
[1764772894773,0.16001,3124.1,3122.6,3.2078]
[1764772894972,3.2078,3124.3,3122.6,3.2078]
[1764772895178,3.2078,3124.3,3120.1,7.64872561]
[1764772895179,0.00480099,3124.7,3124.2,3.2078]
[1764772895373,0.00480099,3124.7,3124.6,3.2078]
[1764772895574,0.00238877,3124.7,3124.6,0.00232868]
[1764772895773,0.00238877,3124.7,3124.0,3.2078]
[1764772895774,48.14640295,3124.7,3122.6,3.2078]
[1764772895982,3.2078,3123.5,3122.6,3.2078]
[1764772896185,3.08675204,3123.1,3121.6,3.2078]
[1764772896480,3.2078,3121.9,3120.6,3.2078]
[1764772896782,3.2078,3121.9,3121.3,3.2078]
[1764772896783,0.00361371,3121.9,3121.3,3.2078]
[1764772896980,3.2078,3123.4,3121.5,3.2078]
[1764772897182,3.2078,3123.4,3123.3,3.2078]
[1764772897183,40.8,3123.4,3123.3,3.2078]
[1764772897379,3.08675204,3124.1,3123.3,3.2078]
[1764772897682,3.2078,3123.4,3121.5,3.2078]
[1764772897982,3.2078,3123.4,3117.8,1.00803445]
[1764772897983,0.16015,3121.5,3119.7,3.2078]
[1764772898182,3.2078,3120.8,3119.8,3.2078]
[1764772898382,3.2078,3120.0,3119.7,0.00348331]
[1764772898588,3.21260099,3120.6,3120.0,0.00480099]
[1764772898888,0.00480099,3120.6,3120.0,3.21260099]
[1764772899275,3.2078,3120.1,3119.1,3.2078]
[1764772899475,3.08675204,3120.2,3118.9,3.2078]
[1764772899476,3.24696204,3120.2,3118.9,3.2078]
[1764772899677,0.16021,3120.2,3119.0,3.2078]
[1764772899879,3.08675204,3119.6,3119.0,3.2078]
[1764772900283,40.8,3120.0,3119.0,3.2078]
[1764772900482,0.16028,3119.0,3118.6,3.2078]
[1764772900784,4.3874,3119.8,3114.8,1.74508185]
[1764772900785,6.29455204,3118.7,3117.4,3.2078]
[1764772900978,3.2078,3119.1,3118.3,3.19407833]
[1764772901180,40.8,3119.0,3118.7,3.2078]
[1764772901484,40.8,3119.0,3116.0,5.06428209]
[1764772901485,0.16029,3118.8,3117.9,3.2078]
[1764772901680,0.16029,3118.8,3116.1,0.00348331]
[1764772901681,3.2078,3118.0,3116.8,3.2078]
[1764772901880,3.2078,3116.9,3116.1,0.00348331]
[1764772902082,3.2078,3117.2,3116.2,3.21128331]
[1764772902282,3.2078,3116.5,3116.2,0.00829208]
[1764772902474,3.2078,3116.3,3116.2,0.00758645]
[1764772902680,0.01349664,3116.3,3116.2,0.00758645]
[1764772903081,0.01518372,3116.3,3116.2,0.00758645]
[1764772903380,6.01855788,3116.3,3116.2,0.00758645]
[1764772903578,0.02024496,3116.3,3116.2,0.00758645]
[1764772903777,0.02193204,3116.3,3116.2,0.01106976]
[1764772904089,9.23141912,3116.3,3116.2,0.00758645]
[1764772904280,3.2331062,3116.3,3114.8,3.2078]